bitfinex-derivatives/quotes_BTCF0:USTF0_20251119
["timestamp","ask_amount","ask_price","bid_price","bid_amount"]
[1763586719239,0.05796,89697.0,89696.0,0.05877803]
[1763586719645,0.05796,89697.0,89696.0,0.05977803]
[1763586721238,0.05796,89697.0,89696.0,0.002]
[1763586721543,0.05796,89697.0,89696.0,0.001]
[1763586721846,0.05732,89689.0,89688.0,5.578e-05]
[1763586722042,0.16572,89689.0,89688.0,5.578e-05]
[1763586722440,0.16572,89689.0,89688.0,0.02679578]
[1763586722641,0.16572,89689.0,89688.0,0.02899381]
[1763586723240,0.52652,89689.0,89688.0,0.00105578]
[1763586723449,0.05562,89668.0,89667.0,0.1383887]
[1763586723638,0.05562,89668.0,89667.0,0.02893803]
[1763586724435,0.05562,89665.0,89657.0,0.1116619]
[1763586724648,0.05562,89665.0,89664.0,0.05739635]
[1763586726348,0.02788,89665.0,89664.0,0.05739635]
[1763586726751,0.02788,89665.0,89664.0,0.05839635]
[1763586727151,0.02788,89665.0,89664.0,0.05739635]
[1763586727450,0.05562,89665.0,89664.0,0.05839635]
[1763586727748,0.1084,89670.0,89669.0,0.05508]
[1763586727951,0.00016725,89676.0,89675.0,0.05508]
[1763586728144,0.26570268,89700.0,89699.0,0.16669]
[1763586728348,0.02788,89706.0,89705.0,0.05508]
[1763586728646,0.16406,89706.0,89705.0,0.05727803]
[1763586729047,0.13632,89706.0,89705.0,0.05727803]
[1763586729553,0.16406,89706.0,89705.0,0.05727803]
[1763586731356,0.16406,89706.0,89705.0,0.00219803]
[1763586733154,0.07176,89700.0,89699.0,0.3608]
[1763586733354,0.05562,89700.0,89699.0,0.41807803]
[1763586733557,0.16406,89706.0,89705.0,0.05508]
[1763586733856,0.16406,89706.0,89705.0,0.05727803]
[1763586734346,0.10844,89706.0,89705.0,0.05727803]
[1763586734748,0.05578725,89714.0,89713.0,0.05508]
[1763586734947,0.16418725,89714.0,89713.0,0.05727803]
[1763586737757,0.02804725,89714.0,89713.0,0.05727803]
[1763586737959,0.13644725,89714.0,89713.0,0.05727803]
[1763586738363,0.02804725,89714.0,89713.0,0.05727803]
[1763586738659,0.16418725,89714.0,89713.0,0.05727803]
[1763586740062,0.02804725,89714.0,89713.0,0.05727803]
[1763586740256,0.00016725,89714.0,89713.0,0.05727803]
[1763586740651,0.05578725,89714.0,89713.0,0.05727803]
[1763586743059,0.00016725,89714.0,89713.0,0.05727803]
[1763586743855,0.00016725,89714.0,89713.0,0.41807803]
[1763586744461,0.26570268,89723.0,89722.0,0.05508]
[1763586744762,0.05562,89723.0,89722.0,0.41807803]
[1763586744956,0.23796268,89732.0,89731.0,0.05508]
[1763586745159,0.05562,89732.0,89731.0,0.41807803]
[1763586745759,0.136,89735.0,89734.0,0.05964]
[1763586746065,0.1084,89737.0,89736.0,0.05964]
[1763586746260,0.00016725,89740.0,89739.0,0.07753]
[1763586746460,0.00016725,89740.0,89739.0,0.44052803]
[1763586746852,0.1084,89748.0,89747.0,0.1711904]
[1763586747057,0.136,89748.0,89747.0,0.53418843]
[1763586747265,0.16619,89748.0,89747.0,0.42263803]
[1763586748166,0.16819,89748.0,89747.0,0.42263803]
[1763586748361,0.1104,89748.0,89747.0,0.42263803]
[1763586748962,0.1114,89748.0,89747.0,0.42263803]
[1763586749369,0.003,89748.0,89747.0,0.42263803]
[1763586750666,0.00016716,89756.0,89755.0,0.05964]
[1763586750855,0.02776716,89756.0,89755.0,0.42263803]
[1763586751764,0.05995716,89756.0,89755.0,0.39313803]
[1763586751969,0.06195716,89756.0,89755.0,0.03233803]
[1763586754470,0.06195716,89756.0,89755.0,0.06075803]
[1763586755970,0.06195716,89756.0,89755.0,0.05922803]
[1763586756168,0.07659,89748.0,89747.0,0.19469716]
[1763586756366,0.18495,89748.0,89747.0,0.19469716]
[1763586756567,0.18495,89748.0,89747.0,0.09372519]
[1763586756963,0.16764,89748.0,89747.0,0.05939519]
[1763586757364,0.16864,89748.0,89747.0,0.05939519]
[1763586758962,0.17235,89748.0,89747.0,0.00236519]
[1763586759367,0.16864,89748.0,89747.0,0.05939519]
[1763586761562,0.06028,89748.0,89747.0,0.05939519]
[1763586761762,0.001,89748.0,89747.0,0.05939519]
[1763586761959,0.06028,89748.0,89747.0,0.05939519]
[1763586762467,0.06028,89748.0,89747.0,0.00236519]
[1763586763070,0.07759,89748.0,89747.0,0.00236519]
[1763586763275,0.06028,89748.0,89747.0,0.03097519]
[1763586763668,0.07759,89748.0,89747.0,0.00236519]
[1763586764874,0.06028,89748.0,89747.0,0.03097519]
[1763586765276,0.07759,89748.0,89747.0,0.00236519]
[1763586765576,0.18591,89748.0,89747.0,0.00236519]
[1763586765761,0.1686,89748.0,89747.0,0.05939519]
[1763586765967,0.10932,89748.0,89747.0,0.05939519]
[1763586766275,0.1386,89748.0,89747.0,0.05939519]
[1763586766475,0.1686,89748.0,89747.0,0.05939519]
[1763586768681,0.1686,89748.0,89747.0,0.03097519]
[1763586769480,0.1676,89748.0,89747.0,0.03097519]
[1763586769675,0.1676,89748.0,89747.0,0.05939519]
[1763586771469,0.18491,89748.0,89747.0,0.00016716]
[1763586771670,0.1708391,89740.0,89739.0,0.19455]
[1763586771870,0.5316391,89740.0,89739.0,0.19455]
[1763586772074,0.05928,89725.0,89724.0,0.41783]
[1763586772277,0.05928,89725.0,89724.0,0.42002803]
[1763586772884,0.1676,89728.0,89727.0,0.05703]
[1763586773180,0.1676,89728.0,89727.0,0.05922803]
[1763586774080,0.1376,89728.0,89727.0,0.05922803]
[1763586774286,0.10832,89728.0,89727.0,0.05922803]
[1763586775681,0.00016716,89733.0,89727.0,0.05922803]
[1763586775682,0.00016716,89733.0,89732.0,0.05703]
[1763586775886,0.00016716,89733.0,89732.0,0.05922803]
[1763586776880,0.05944716,89733.0,89732.0,0.00419803]
[1763586777380,0.00016716,89733.0,89732.0,0.06122803]
[1763586777977,0.02944716,89733.0,89732.0,0.06122803]
[1763586778176,0.05944716,89733.0,89732.0,0.06122803]
[1763586778578,0.05944716,89733.0,89732.0,0.06022803]
[1763586778778,0.05944716,89733.0,89732.0,0.06122803]
[1763586778977,0.05944716,89733.0,89732.0,0.03280803]
[1763586779181,0.05944716,89733.0,89732.0,0.00419803]
[1763586779490,0.05944716,89733.0,89732.0,0.00319803]
[1763586780181,0.00016716,89733.0,89732.0,0.06022803]
[1763586780380,0.42008,89759.0,89758.0,0.05703]
[1763586780688,0.0595585,89766.0,89765.0,0.05703]
[1763586780885,0.0002785,89766.0,89765.0,0.42002803]
[1763586781288,0.0295585,89766.0,89765.0,0.42002803]
[1763586781486,0.0595585,89766.0,89765.0,0.42002803]
[1763586782478,0.0295585,89766.0,89765.0,0.42002803]
[1763586783392,0.0572185,89766.0,89765.0,0.42002803]
[1763586783692,0.0002785,89766.0,89765.0,0.42002803]
[1763586783893,0.0531785,89766.0,89765.0,0.42002803]
[1763586784195,0.0002785,89766.0,89765.0,0.42002803]
[1763586787894,0.00542,89772.0,89771.0,0.05266]
[1763586788191,0.00542,89772.0,89771.0,0.05485803]
[1763586788993,0.00016716,89774.0,89771.0,0.05485803]
[1763586789193,0.10828,89785.0,89784.0,0.05266]
[1763586789495,0.10828,89785.0,89784.0,0.41565803]
[1763586790789,0.10828,89785.0,89784.0,0.52716243]
[1763586792291,0.10828,89785.0,89784.0,0.41565803]
[1763586792495,0.10928,89785.0,89784.0,0.41565803]
[1763586794702,0.001,89785.0,89784.0,0.41565803]
[1763586795298,0.02540716,89793.0,89792.0,0.05266]
[1763586795604,0.05306716,89793.0,89792.0,0.41565803]
[1763586795997,0.17500036,89793.0,89792.0,0.00219803]
[1763586796595,0.05306716,89793.0,89792.0,0.02774803]
[1763586796904,0.06350716,89793.0,89792.0,0.00219803]
[1763586797604,0.06350716,89793.0,89792.0,0.00319803]
[1763586797898,0.06350716,89793.0,89792.0,0.00219803]
[1763586798097,0.06350716,89793.0,89792.0,0.00319803]
[1763586798505,0.06350716,89793.0,89792.0,0.001]
[1763586798904,0.0529,89779.0,89778.0,0.41346]
[1763586799107,0.0529,89779.0,89778.0,0.41565803]
[1763586799295,0.02524,89779.0,89778.0,0.41565803]
[1763586799696,0.31686202,89788.0,89787.0,0.05266]
[1763586799896,0.0529,89788.0,89787.0,0.05485803]
[1763586801799,0.0529,89788.0,89787.0,0.05585803]
[1763586801995,0.0529,89788.0,89787.0,0.05485803]
[1763586802409,0.0529,89780.0,89779.0,0.10314]
[1763586802602,0.0529,89759.0,89758.0,0.05266]
[1763586802805,0.16114,89759.0,89758.0,0.05485803]
[1763586803596,0.16114,89759.0,89758.0,0.00219803]
[1763586803911,0.0529,89751.0,89750.0,0.00016706]
[1763586804210,0.0529,89751.0,89750.0,0.02791509]
[1763586804602,0.0529,89751.0,89750.0,0.05502509]
[1763586805904,0.02524,89751.0,89750.0,0.05502509]
[1763586806110,0.13348,89751.0,89750.0,0.05502509]
[1763586806310,0.13348,89751.0,89750.0,0.05602509]
[1763586806516,0.15735,89751.0,89750.0,0.05602509]
[1763586807211,0.41014,89766.0,89765.0,0.04997]
[1763586807511,0.15758,89766.0,89765.0,0.05216803]
[1763586807904,0.17301,89766.0,89765.0,0.00219803]
[1763586808816,0.10824,89766.0,89765.0,0.05216803]
[1763586809403,0.13371,89766.0,89765.0,0.05216803]
[1763586810011,0.15758,89766.0,89765.0,0.05216803]
[1763586810908,0.00016706,89767.0,89766.0,0.04997]
[1763586811111,0.10840706,89767.0,89766.0,0.06724803]
[1763586811511,0.00016706,89767.0,89766.0,0.06724803]
[1763586811719,0.10824,89773.0,89772.0,0.04997]
[1763586812012,0.04791,89786.0,89785.0,0.04747]
[1763586812216,0.15615,89786.0,89785.0,0.04966803]
[1763586813616,0.15815,89786.0,89785.0,0.04966803]
[1763586814506,0.04991,89786.0,89785.0,0.04966803]
[1763586814706,0.15815,89786.0,89785.0,0.04966803]
[1763586819718,0.002,89786.0,89785.0,0.04966803]
[1763586820018,0.11024,89786.0,89785.0,0.04966803]
[1763586821022,0.002,89786.0,89785.0,0.04966803]
[1763586821207,0.00016706,89794.0,89793.0,0.04747]
[1763586821410,0.00016706,89794.0,89793.0,0.41046803]
[1763586822318,0.04807706,89794.0,89793.0,0.41046803]
[1763586822621,0.04907706,89794.0,89793.0,0.41046803]
[1763586824918,0.00116706,89794.0,89793.0,0.41046803]
[1763586825112,0.1082,89795.0,89794.0,0.04747]
[1763586825312,0.15611,89795.0,89794.0,0.00219803]
[1763586826623,0.15711,89795.0,89794.0,0.00219803]
[1763586830819,0.04791,89788.0,89787.0,0.05114]
[1763586831019,0.40871,89788.0,89787.0,0.05114]
[1763586831219,0.04791,89778.0,89777.0,0.04763706]
[1763586831416,0.15611,89778.0,89777.0,0.04983509]
[1763586831617,0.15611,89778.0,89763.0,0.3608]
[1763586831618,0.06187,89760.0,89751.0,0.3608]
[1763586831925,0.12216,89760.0,89736.0,0.06149]
[1763586832220,0.26396202,89746.0,89737.0,0.04966803]
[1763586832520,0.10132,89745.0,89737.0,0.04966803]
[1763586832825,0.10132,89745.0,89744.0,0.04747]
[1763586833023,0.11219202,89745.0,89744.0,0.04966803]
[1763586833719,0.00016706,89750.0,89749.0,0.04747]
[1763586833917,0.10836706,89750.0,89749.0,0.04966803]
[1763586836125,0.10836706,89750.0,89749.0,0.05166803]
[1763586837018,0.10836706,89750.0,89749.0,0.05066803]
[1763586837217,0.10836706,89750.0,89749.0,0.05166803]
[1763586838224,0.10836706,89750.0,89749.0,0.05066803]
[1763586838426,0.10836706,89750.0,89749.0,0.002]
[1763586838826,0.10836706,89750.0,89749.0,0.001]
[1763586839031,0.10836706,89750.0,89748.0,0.01402]
[1763586839330,0.10836706,89750.0,89748.0,0.0373]
[1763586839529,0.10836706,89750.0,89749.0,0.00219803]
[1763586840426,0.10836706,89750.0,89741.0,0.01051]
[1763586840833,0.10836706,89750.0,89741.0,0.01270803]
[1763586841532,0.1115479,89749.0,89741.0,0.01270803]
[1763586842031,0.1082,89748.0,89741.0,0.01270803]
[1763586842231,0.3608,89744.0,89741.0,0.01270803]
[1763586842730,0.3608,89744.0,89741.0,0.01370803]
[1763586842931,0.3608,89744.0,89741.0,0.01151]
[1763586843232,0.3608,89744.0,89741.0,0.01051]
[1763586843431,0.3608,89744.0,89741.0,0.01151]
[1763586843725,0.3608,89744.0,89742.0,0.00219803]
[1763586843933,0.4723552,89744.0,89739.0,0.0509]
[1763586844133,0.3608,89744.0,89740.0,0.02592803]
[1763586844520,0.3608,89744.0,89740.0,0.05106803]
[1763586844720,0.1082,89743.0,89740.0,0.05106803]
[1763586846434,0.1082,89743.0,89740.0,0.00219803]
[1763586846835,0.3608,89744.0,89743.0,0.04887]
[1763586847030,0.21015055,89750.0,89744.0,0.06285]
[1763586847334,0.1082,89749.0,89745.0,0.05106803]
[1763586849133,0.2197484,89749.0,89745.0,0.00219803]
[1763586849837,0.1115564,89743.0,89739.0,0.0509]
[1763586850031,0.3608,89740.0,89739.0,0.0509]
[1763586850228,0.469,89740.0,89739.0,0.0509]
[1763586850840,0.469,89740.0,89739.0,0.07682803]
[1763586851732,0.469,89740.0,89739.0,0.10196803]
[1763586853240,0.469,89740.0,89739.0,0.05309803]
[1763586855132,0.469,89740.0,89739.0,0.07682803]
[1763586855437,0.469,89740.0,89739.0,0.05309803]
[1763586856639,0.469,89740.0,89728.0,0.01402]
[1763586856840,0.3608,89729.0,89728.0,0.06289]
[1763586857043,0.469,89729.0,89728.0,0.06289]
[1763586857232,0.469,89729.0,89728.0,0.06508803]
[1763586857640,0.46912446,89729.0,89728.0,0.06508803]
[1763586858433,0.10832446,89729.0,89728.0,0.06508803]
[1763586861535,0.10832446,89729.0,89728.0,0.03994803]
[1763586861734,0.10832446,89729.0,89726.0,0.00027863]
[1763586861735,0.1082,89729.0,89726.0,0.01425863]
[1763586861936,0.1082,89729.0,89728.0,0.02592803]
[1763586862542,0.1082836,89729.0,89728.0,0.02592803]
[1763586862750,0.1082,89729.0,89728.0,0.05106803]
[1763586863239,0.10828798,89729.0,89728.0,0.05106803]
[1763586863436,8.798e-05,89729.0,89728.0,0.05106803]
[1763586863640,0.10828798,89729.0,89728.0,0.05106803]
[1763586864545,8.798e-05,89729.0,89728.0,0.05106803]
[1763586864732,0.10828798,89729.0,89728.0,0.05106803]
[1763586865134,8.798e-05,89729.0,89728.0,0.05106803]
[1763586865335,0.10828798,89729.0,89728.0,0.05106803]
[1763586865746,0.10828798,89729.0,89728.0,0.05603381]
[1763586865934,8.798e-05,89729.0,89728.0,0.05603381]
[1763586866138,0.10828798,89729.0,89728.0,0.05603381]
[1763586868244,0.21986068,89729.0,89728.0,0.05603381]
[1763586868448,0.58066068,89729.0,89728.0,0.05603381]
[1763586869048,0.46908798,89729.0,89728.0,0.05603381]
[1763586869638,0.10828798,89729.0,89728.0,0.05603381]
[1763586874844,0.10828798,89729.0,89728.0,0.05703381]
[1763586882953,8.798e-05,89729.0,89728.0,0.05703381]
[1763586886766,8.798e-05,89729.0,89728.0,0.05803381]
[1763586887560,8.798e-05,89729.0,89728.0,0.05603381]
[1763586887763,8.798e-05,89729.0,89728.0,0.05703381]
[1763586888172,8.798e-05,89729.0,89728.0,0.05603381]
[1763586888377,8.798e-05,89729.0,89728.0,0.05803381]
[1763586889578,0.21015055,89750.0,89749.0,0.04344]
[1763586889767,0.10836706,89750.0,89749.0,0.05060381]
[1763586890076,0.12080706,89750.0,89749.0,0.05060381]
[1763586890375,0.12086088,89750.0,89749.0,0.05060381]
[1763586890964,0.13330088,89750.0,89749.0,0.05060381]
[1763586894173,0.13330088,89750.0,89749.0,0.00496578]
[1763586894376,0.49410088,89750.0,89749.0,0.00496578]
[1763586895262,0.49410088,89750.0,89749.0,0.05060381]
[1763586895467,0.13326088,89750.0,89749.0,0.05060381]
[1763586896477,0.12082088,89750.0,89749.0,0.05060381]
[1763586897278,0.10838088,89750.0,89749.0,0.05060381]
[1763586898275,0.00022088,89750.0,89749.0,0.05060381]
[1763586898482,0.10838088,89750.0,89749.0,0.05060381]
[1763586900382,0.00022088,89750.0,89749.0,0.05060381]
[1763586901372,0.03816,89751.0,89750.0,0.1549866]
[1763586901578,0.07038183,89751.0,89750.0,0.04563803]
[1763586901880,0.07038183,89751.0,89750.0,0.05060381]
[1763586903779,0.07038183,89751.0,89750.0,0.00716381]
[1763586905785,0.07038183,89751.0,89750.0,0.02926381]
[1763586905978,0.04404715,89759.0,89758.0,0.04359]
[1763586906283,0.10832715,89759.0,89758.0,0.04578803]
[1763586906780,0.04404715,89759.0,89758.0,0.04578803]
[1763586906977,0.00016715,89759.0,89758.0,0.05075381]
[1763586907279,0.00116715,89759.0,89758.0,0.05075381]
[1763586907789,0.41824,89775.0,89774.0,0.04359]
[1763586908085,0.41824,89775.0,89774.0,0.00716381]
[1763586908278,0.52636,89775.0,89774.0,0.00716381]
[1763586908474,0.52636,89775.0,89774.0,0.02926381]
[1763586908781,0.52636,89775.0,89774.0,0.00716381]
[1763586909275,0.52836,89775.0,89774.0,0.02926381]
[1763586909780,0.52836,89775.0,89774.0,0.05075381]
[1763586909974,0.16756,89775.0,89774.0,0.05075381]
[1763586910179,0.16756,89775.0,89766.0,0.36096715]
[1763586910180,0.04388,89767.0,89766.0,0.00016715]
[1763586910380,0.04388,89746.0,89745.0,0.40439]
[1763586910687,0.04607803,89746.0,89745.0,0.40512267]
[1763586911287,0.04388,89754.0,89746.0,0.1115516]
[1763586911591,0.04607803,89753.0,89752.0,0.04359]
[1763586911887,0.04607803,89753.0,89752.0,0.04432267]
[1763586913082,0.00219803,89753.0,89752.0,0.16827677]
[1763586914279,0.04607803,89753.0,89752.0,0.05673267]
[1763586915278,0.00016715,89759.0,89758.0,0.04359]
[1763586915585,0.04624518,89759.0,89758.0,0.04432267]
[1763586916089,0.00236518,89759.0,89758.0,0.04432267]
[1763586917888,0.00336518,89759.0,89758.0,0.04432267]
[1763586918082,0.04724518,89759.0,89758.0,0.04432267]
[1763586918786,0.04724518,89759.0,89758.0,0.00073267]
[1763586919290,0.40804518,89759.0,89758.0,0.00073267]
[1763586919586,0.04388,89746.0,89745.0,0.40439]
[1763586919787,0.04607803,89746.0,89745.0,0.40512267]
[1763586921684,0.00219803,89746.0,89745.0,0.40512267]
[1763586921904,0.02441803,89746.0,89745.0,0.40512267]
[1763586924388,0.00219803,89746.0,89745.0,0.40512267]
[1763586925296,0.21181635,89755.0,89754.0,0.04359]
[1763586925601,0.21181635,89755.0,89754.0,0.04432267]
[1763586925602,0.04607803,89755.0,89754.0,0.04432267]
[1763586926100,0.00016715,89759.0,89758.0,0.04575]
[1763586926401,0.00236518,89759.0,89758.0,0.04648267]
[1763586926992,0.02468518,89759.0,89758.0,0.04648267]
[1763586927390,0.00236518,89759.0,89758.0,0.04648267]
[1763586927792,0.04764518,89759.0,89758.0,0.04648267]
[1763586929800,0.00336518,89759.0,89758.0,0.15801927]
[1763586930304,0.00236518,89759.0,89758.0,0.15901927]
[1763586930502,0.00016715,89759.0,89758.0,0.16001927]
[1763586930698,0.00016715,89759.0,89758.0,0.15901927]
[1763586930900,0.00016715,89759.0,89758.0,0.16001927]
[1763586932907,0.00016715,89759.0,89758.0,0.15901927]
[1763586933203,0.3608,89772.0,89771.0,0.04476]
[1763586933392,0.3608,89772.0,89771.0,0.04549267]
[1763586933905,0.15302,89775.0,89774.0,0.04476]
[1763586934106,0.15302,89775.0,89774.0,0.04549267]
[1763586934996,0.10808,89775.0,89774.0,0.04549267]
[1763586935699,0.12982,89775.0,89774.0,0.04549267]
[1763586936012,0.15521803,89775.0,89774.0,0.04549267]
[1763586939707,0.16838803,89775.0,89774.0,0.04549267]
[1763586940202,0.15521803,89775.0,89774.0,0.04549267]
[1763586940600,0.16838803,89775.0,89774.0,0.04549267]
[1763586941203,0.16938803,89775.0,89774.0,0.00073267]
[1763586941603,0.04494,89767.0,89766.0,0.00016715]
[1763586941804,0.04713803,89767.0,89766.0,0.04565982]
[1763586944304,0.00219803,89767.0,89766.0,0.04565982]
[1763586944500,0.02393803,89767.0,89766.0,0.04565982]
[1763586944809,0.04713803,89767.0,89766.0,0.04565982]
[1763586948914,0.02393803,89767.0,89766.0,0.04565982]
[1763586949213,0.02174,89767.0,89766.0,0.04565982]
[1763586949513,0.04494,89767.0,89766.0,0.04565982]
[1763586950210,0.04713803,89767.0,89766.0,0.04565982]
[1763586953211,0.00219803,89767.0,89766.0,0.05844982]
[1763586953413,0.15302,89775.0,89774.0,0.04476]
[1763586953609,0.15521803,89775.0,89774.0,0.04549267]
[1763586954914,0.15621803,89775.0,89774.0,0.04549267]
[1763586955114,0.13301803,89775.0,89774.0,0.04549267]
[1763586955320,0.11127803,89775.0,89774.0,0.04549267]
[1763586955610,0.06130803,89775.0,89774.0,0.00073267]
[1763586962118,0.04527,89767.0,89766.0,0.00016715]
[1763586962317,0.04746803,89767.0,89766.0,0.00089982]
[1763586963117,0.04746803,89767.0,89766.0,0.04575982]
[1763586964322,0.04746803,89767.0,89766.0,0.17007652]
[1763586965222,0.04746803,89767.0,89766.0,0.15728652]
[1763586966223,0.04746803,89767.0,89766.0,0.17115652]
[1763586966416,0.02515803,89767.0,89766.0,0.17115652]
[1763586966620,0.04746803,89767.0,89766.0,0.17115652]
[1763586967617,0.10804,89769.0,89768.0,0.04486]
[1763586967922,0.02312715,89783.0,89782.0,0.04486]
[1763586968217,0.00016715,89783.0,89782.0,0.04559267]
[1763586968419,0.16788469,89800.0,89782.0,0.04559267]
[1763586968420,0.21315469,89800.0,89799.0,0.04486]
[1763586968622,0.01333,89817.0,89799.0,0.00073267]
[1763586968817,0.09988,89815.0,89805.0,0.04486]
[1763586969016,0.09988,89815.0,89803.0,0.01279]
[1763586969017,0.05527,89811.0,89810.0,0.04559267]
[1763586969222,0.05746803,89811.0,89810.0,0.00073267]
[1763586969426,0.03515803,89811.0,89810.0,0.04559267]
[1763586969624,0.00245026,89811.0,89810.0,0.04559267]
[1763586969922,0.00011125,89819.0,89818.0,0.04486]
[1763586970117,0.00011125,89819.0,89818.0,0.40639267]
[1763586970717,0.04527,89838.0,89837.0,0.04486]
[1763586971021,0.02296,89838.0,89837.0,0.15703127]
[1763586971222,0.04527,89848.0,89847.0,0.04486]
[1763586971416,0.06079803,89848.0,89847.0,0.04559267]
[1763586971818,0.04746803,89848.0,89847.0,0.04559267]
[1763586972014,0.15327,89859.0,89858.0,0.04486]
[1763586972324,0.15546803,89859.0,89858.0,0.04559267]
[1763586972520,0.15546803,89859.0,89858.0,0.00073267]
[1763586973216,0.11019803,89859.0,89858.0,0.04559267]
[1763586973414,0.04527,89872.0,89871.0,0.04486]
[1763586973618,0.3608,89879.0,89878.0,0.04486]
[1763586973817,0.108,89903.0,89885.0,0.04486]
[1763586974019,0.04554813,89886.0,89885.0,0.04559267]
[1763586974220,5.803e-05,89886.0,89885.0,0.04559267]
[1763586974629,0.04752606,89886.0,89885.0,0.00073267]
[1763586974930,0.04752606,89886.0,89885.0,0.04559267]
[1763586975229,0.04752606,89886.0,89885.0,0.04659267]
[1763586975414,0.04752606,89886.0,89885.0,0.04759267]
[1763586976125,0.04752606,89886.0,89885.0,0.04659267]
[1763586976328,0.04752606,89886.0,89885.0,0.00273267]
[1763586976925,0.04752606,89886.0,89885.0,0.00173267]
[1763586977118,0.04752606,89886.0,89885.0,0.00273267]
[1763586978121,0.02521606,89886.0,89885.0,0.04759267]
[1763586978620,0.04752606,89886.0,89885.0,0.04759267]
[1763586979919,0.04752606,89886.0,89885.0,0.04659267]
[1763586980119,0.04752606,89886.0,89885.0,0.04759267]
[1763586980423,5.803e-05,89886.0,89885.0,0.04759267]
[1763586980625,0.0586,89901.0,89900.0,0.04486]
[1763586980821,0.04746803,89901.0,89900.0,0.04559267]
[1763586981130,0.00219803,89901.0,89900.0,0.04559267]
[1763586981428,0.40607,89915.0,89914.0,0.02237]
[1763586981728,0.40826803,89915.0,89914.0,0.04559267]
[1763586981950,0.04746803,89915.0,89914.0,0.04559267]
[1763586983216,0.04746803,89915.0,89914.0,0.00073267]
[1763586983416,0.15880993,89915.0,89914.0,0.00073267]
[1763586983635,0.04527,89894.0,89893.0,0.40566]
[1763586983924,0.04746803,89894.0,89893.0,0.40639267]
[1763586984124,0.04746803,89894.0,89893.0,0.36153267]
[1763586984928,0.04746803,89894.0,89893.0,0.40639267]
[1763586985130,0.00219803,89894.0,89893.0,0.40639267]
[1763586985832,0.02515803,89894.0,89893.0,0.40739267]
[1763586986217,0.04746803,89894.0,89893.0,0.40739267]
[1763586987025,0.04746803,89894.0,89893.0,0.40839267]
[1763586987725,0.00219803,89894.0,89893.0,0.40839267]
[1763586987931,0.00219803,89894.0,89893.0,0.40739267]
[1763586988131,0.00219803,89894.0,89893.0,0.40839267]
[1763586988331,0.04710803,89894.0,89893.0,0.40839267]
[1763586988529,0.04710803,89894.0,89893.0,0.40739267]
[1763586989531,0.04710803,89894.0,89893.0,0.00173267]
[1763586989721,0.04710803,89894.0,89893.0,0.00073267]
[1763586990437,0.15498803,89894.0,89893.0,0.00073267]
[1763586990637,0.04491,89884.0,89883.0,0.3608]
[1763586990935,0.1563002,89876.0,89875.0,0.3608]
[1763586991127,0.36299803,89876.0,89875.0,0.04500267]
[1763586991326,0.121,89892.0,89875.0,0.00073267]
[1763586991537,0.04710803,89889.0,89888.0,0.04427]
[1763586991842,0.04710803,89889.0,89888.0,0.00073267]
[1763586992230,0.00219803,89889.0,89880.0,0.04454687]
[1763586992441,0.40725803,89889.0,89888.0,0.04511267]
[1763586993638,0.40725803,89889.0,89888.0,0.04611267]
[1763586994029,0.40725803,89889.0,89888.0,0.04511267]
[1763586994340,0.40725803,89889.0,89888.0,0.04611267]
[1763586994733,0.40725803,89889.0,89888.0,0.00173267]
[1763586995440,0.40725803,89889.0,89888.0,0.001]
[1763586995741,0.04426,89881.0,89880.0,0.00016687]
[1763586995937,0.00219803,89881.0,89880.0,0.04527954]
[1763586996738,0.02266,89889.0,89888.0,0.04538]
[1763586996951,0.10788,89892.0,89891.0,0.04438]
[1763586997139,0.11007803,89892.0,89891.0,0.04511267]
[1763586997434,0.10788,89892.0,89891.0,0.04511267]
[1763586997641,0.3608,89898.0,89896.0,0.04438]
[1763586997837,0.3608,89907.0,89896.0,0.04511267]
[1763586999743,0.00116623,89897.0,89896.0,0.04511267]
[1763586999940,0.00216623,89897.0,89896.0,0.04511267]
[1763587000246,0.10784,89909.0,89908.0,0.04438]
[1763587000441,0.10784,89909.0,89908.0,0.04511267]
[1763587001249,0.10784,89909.0,89908.0,0.15646327]
[1763587001745,0.11784,89909.0,89908.0,0.04511267]
[1763587001945,0.01,89909.0,89908.0,0.04511267]
[1763587002446,0.01,89909.0,89908.0,0.04611267]
[1763587002745,0.3608,89919.0,89908.0,0.04611267]
[1763587002746,0.3608,89919.0,89918.0,0.1557182]
[1763587002932,0.36299803,89919.0,89918.0,0.04511267]
[1763587003640,0.40725803,89919.0,89918.0,0.04511267]
[1763587003845,0.40725803,89919.0,89918.0,0.00073267]
[1763587004033,0.40725803,89919.0,89918.0,0.04511267]
[1763587005045,0.40725803,89919.0,89918.0,0.04611267]
[1763587005445,0.00219803,89919.0,89918.0,0.04511267]
[1763587005746,0.05926803,89919.0,89918.0,0.04611267]
[1763587006246,0.02485803,89919.0,89918.0,0.04611267]
[1763587006444,0.00219803,89919.0,89918.0,0.04611267]
[1763587006637,0.00219803,89919.0,89918.0,0.04511267]
[1763587006839,0.04453801,89926.0,89925.0,0.04438]
[1763587007038,0.04673604,89926.0,89925.0,0.00073267]
[1763587007433,0.04673604,89926.0,89918.0,0.001]
[1763587007647,0.41787,89919.0,89918.0,0.001]
[1763587007846,0.42006803,89919.0,89918.0,0.00173267]
[1763587008148,0.42006803,89919.0,89918.0,0.00073267]
[1763587008447,0.04426,89904.0,89903.0,0.40518]
[1763587008644,0.04645803,89904.0,89903.0,0.04511267]
[1763587009943,0.04645803,89904.0,89903.0,0.04611267]
[1763587011648,0.04645803,89904.0,89903.0,0.15746947]
[1763587012141,0.00219803,89904.0,89903.0,0.15746947]
[1763587012340,0.04426,89915.0,89914.0,0.1557227]
[1763587012541,0.04645803,89915.0,89914.0,0.15645537]
[1763587013449,0.04645803,89915.0,89914.0,0.04511267]
[1763587013650,0.04645803,89915.0,89914.0,0.04611267]
[1763587014255,0.04645803,89915.0,89914.0,0.00173267]
[1763587014748,0.05145803,89915.0,89914.0,0.00173267]
[1763587014949,0.05145803,89915.0,89914.0,0.02402267]
[1763587015151,0.05145803,89915.0,89914.0,0.02302267]
[1763587015548,0.05145803,89915.0,89914.0,0.04511267]
[1763587015952,0.05145803,89915.0,89914.0,0.04711267]
[1763587017056,0.00719803,89915.0,89914.0,0.04711267]
[1763587017962,0.005,89915.0,89914.0,0.04711267]
[1763587018661,0.005,89915.0,89914.0,0.04511267]
[1763587018959,0.005,89915.0,89914.0,0.04711267]
[1763587019465,0.005,89915.0,89914.0,0.04511267]
[1763587020458,0.3608,89927.0,89925.0,0.04438]
[1763587020755,0.00247604,89926.0,89925.0,0.04511267]
[1763587021151,0.00027801,89926.0,89925.0,0.04511267]
[1763587021347,0.4686,89936.0,89935.0,0.04438]